Workbook

Sheet ТЗ
G8: Тендерная ведомость | I8: Тендерная ведомость | L8: Материалы и оборудование | W8: КС-3 №1 от 01.08.2017 | AK8: Итого выполнено с начала строительства без НДС | AU8: Итого выполнено с начала строительства с НДС | BE8: Остаток количества работ, материалов, оборудования | BF8: Остаток стоимости без НДС, тыс.руб. | BG8: Остаток стоимости с НДС, тыс.руб. | BH8: Исполнитель
G9: тыс. руб. без НДС | I9: тыс. руб. с НДС
A10: № п/п | B10: № Этапа | C10: Наименование глав, объектов, | D10: Единица измерения | E10: Количество | F10: Стоимость единицы без НДС в ценах I кв. 2016 г., руб. без НДС | G10: Общая стоимость с общим индексом перевода в текущие цены на СМР в цены I кв. 2016 г. | H10: Примечание | I10: Общая стоимость с общим индексом перевода в текущие цены на СМР в цены I кв. 2016 г. | J10: Номер расчета | K10: материал | L10: Поставщик | M10: Насыпная плотность | N10: Количество, м3 | O10: Фактическая цена без НДС за м3, руб. | P10: Итоговая Фактическая стоимость без НДС за м3, тыс.руб. | Q10: Итоговая Фактическая стоимость с НДС м3, тыс.руб. | R10: Сумма аванса в отношении инертных материалов без НДС, тыс.руб. | S10: Сумма аванса в отношении инертных материалов с НДС, тыс.руб. | T10: Разница между фактической и сметной стоимостью без НДС, тыс. руб. | U10: Итого разница между фактической и сметной стоимостью без НДС, тыс. руб. | V10: Кол-во по РД минус кол-во по факту | W10: Номер и дата Акта выполненных работ | X10: Объем выполненных работ | Y10: Стоимость СМР в текущих ценах I кв. 2016 г. | Z10: Стоимость оборудования в текущих ценах I кв. 2016 г. | AA10: Стоимость ВЗиС в текущих ценах I кв. 2016 г. | AB10: Стоимость прочих работ и затрат в текущих ценах I кв. 2016 г. | AC10: Всего стоимость выполненных работ в текущих ценах I кв. 2016 г. | AD10: Стоимость резерва средств на непредвиденные работы и затраты | AE10: Стоимость сверх резерва средств на непредвиденные работы и затраты | AF10: сумма удержания (СУ) в размере 5% от стоимости фактически выполненных работ | AG10: суммы авансов, выплаченные в отношении Инертных материалов | AH10: Итого к оплате | AI10: в том числе сметная стоимость материалов без НДС, тыс.руб. | AJ10: в том числе фактическая стоимость материалов без НДС, тыс.руб. | AK10: СМР | AL10: Оборудование | AM10: ВЗиС | AN10: Прочие | AO10: Всего | AP10: Стоимость резерва средств на непредвиденные работы и затраты | AQ10: Стоимость сверх резерва средств на непредвиденные работы и затраты | AR10: сумма удержания (СУ) в размере 5% от стоимости фактически выполненных работ с НДС | AS10: суммы авансов, выплаченные в отношении Инертных материалов | AT10: Итого | AU10: СМР | AV10: Оборудование | AW10: ВЗиС | AX10: Прочие | AY10: Всего | AZ10: Стоимость резерва средств на непредвиденные работы и затраты | BA10: Стоимость сверх резерва средств на непредвиденные работы и затраты | BB10: сумма удержания (СУ) в размере 5% от стоимости фактически выполненных работ | BC10: суммы авансов, выплаченные в отношении Инертных материалов | BD10: Итого | BE10: кол-во | BF10: Общая стоимость с индексацией по видам работ и статьям затрат в цены I кв. 2016 г. | BG10: Общая стоимость с индексацией по видам работ и статьям затрат в цены I кв. 2016 г.
A11: 1 | B11: 2 | C11: 3 | D11: 4 | E11: 5 | F11: 6 | G11: 7 | H11: 8 | I11: 9 | J11: 10 | K11: 11 | L11: 12 | M11: 13 | N11: 14 | P11: 16 | Q11: 17 | R11: 18 | S11: 19 | T11: 20 | U11: 21 | V11: 22 | W11: 23 | X11: 24 | Y11: 25 | Z11: 26 | AA11: 27 | AB11: 28 | AC11: 29 | AD11: 30 | AE11: 31 | AF11: 32 | AG11: 33 | AH11: 34 | AI11: 35 | AJ11: 36 | AK11: 37 | AL11: 38 | AM11: 39 | AN11: 40 | AO11: 41 | AP11: 42 | AQ11: 43 | AR11: 44 | AS11: 45 | AT11: 46 | AU11: 47 | AV11: 48 | AW11: 49 | AX11: 50 | AY11: 51 | AZ11: 52 | BA11: 53 | BB11: 54 | BC11: 55 | BD11: 56 | BE11: 57 | BF11: 58 | BG11: 59 | BH11: 60
A12: 1. | C12: Рабочая документация | J12: детализировать
A13: 1.1 | C13: Разработка рабочей документации | D13: Комплект | E13: 1 | G13: =4615.39*3.92*1.19*1000 -> 21529871.27 | J13: детализировать
A14: 2. | C14: Подготовительные работы | J14: детализировать
A15: 2.1 | C15: Разбивочные работы по выносу в натуру патрульной дороги (участок №1, №2), КПП -1,2,3,4. | D15: Комплект | E15: 1 | G15: =37.45*3.93*1.266*1000 -> 186327.981 | J15: детализировать
A16: 2.2 | C16: Подготовительные работы. Разборка покрытий на патрульной автодороге и участках КПП | D16: м2 | E16: 13260 | F16: =G16/E16 -> 180.0292911 | G16: =381.34*6.26*1000 -> 2387188.4 | J16: детализировать
A17: 2.3 | C17: Подготовительные работы. Вынос сетей водоснабжения | D17: м | E17: 85 | F17: =G17/E17 -> 4524.875294 | G17: =61.44*6.26*1000 -> 384614.4 | J17: детализировать
A18: 2.4 | C18: Подготовительные работы. Вынос сетей водоотведения | D18: м | E18: 180 | F18: =G18/E18 -> 16306.60444 | G18: =468.88*6.26*1000 -> 2935188.8 | J18: детализировать
A19: 2.5 | C19: Вынос сетей связи | D19: м | E19: 73250 | G19: =9921.48*6.26*1000 -> 62108464.8 | J19: детализировать
A20: 3 | C20: Основные объекты строительства | J20: детализировать
A21: 3.1 | C21: Периметровое ограждение с техническими средствами охраны и видеонаблюдения (КР2) | D21: м | E21: 27468 | F21: =G21/E21 -> 3367.676256 | G21: =14776.89*6.26*1000 -> 92503331.4 | J21: детализировать
A22: 3.2 | C22: Электрооборудование, внутриплощадочные сети 0.4 кВ (СЭ) | D22: м | E22: 25075 | F22: =G22/E22 -> 1263.875573 | G22: =((525.93+3959.82)*6.26+923.5*3.91)*1000 -> 31691680 | J22: детализировать
A23: 3.3 | C23: Система охранно-тревожной сигнализации (СОТС) | D23: Комплект | E23: 1 | G23: =((476.5+1169.46)*6.26+13492.24*3.91)*1000 -> 63058368 | J23: детализировать
A24: 3.4 | C24: Системае контроля и управления доступом (СКУД) | D24: Комплект | E24: 1 | G24: =((25.19+55.05)*6.26+1118.22*3.91)*1000 -> 4874542.6 | J24: детализировать
A25: 3.5 | C25: Система видеонаблюдения и видеоанализа (СВН) | D25: Комплект | E25: 1 | G25: =((68.65+1848.44)*6.26+18879.78*3.91)*1000 -> 85820923.2 | J25: детализировать
A26: 3.6 | C26: Система сбора и обработки информации (ССОИ) | D26: Комплект | E26: 1 | G26: =(37.49*6.26+1121*3.91)*1000 -> 4617797.4 | J26: детализировать
A27: 3.7 | C27: Система спутникового позиционирования (ССП) | D27: Комплект | E27: 1 | G27: =(0.16*6.26+11.89*3.91)*1000 -> 47491.5 | J27: детализировать
A28: 3.8 | C28: Структурированная кабельная система (СКС) | D28: Комплект | E28: 1 | G28: =((2167.42+727)*6.26+334.03*3.91)*1000 -> 19425126.5 | J28: детализировать
A29: 3.9 | C29: Контрольно-пропускной пункт №1.(КПП-1)(по генплану №106) | D29: Комплект | E29: 1 | G29: =((1607.6+249.72)*6.26+1805.12*3.91)*1000 -> 18684842.4 | J29: детализировать
A30: 3.10 | C30: Контрольно-пропускной пункт №2.(КПП-2)(по генплану №107) | D30: Комплект | E30: 1 | G30: =((3096.1+431.43)*6.26+2621.6*3.91)*1000 -> 32332793.8 | J30: детализировать
A31: 3.11 | C31: Контрольно-пропускной пункт №3.(КПП-3)(по генплану №108) | D31: Комплект | E31: 1 | G31: =((2719.44+348.25)*6.26+2623.83*3.91)*1000 -> 29462914.7 | J31: детализировать
A32: 3.12 | C32: Контрольно-пропускной пункт №4.(КПП-4)(по генплану №109) | D32: Комплект | E32: 1 | G32: =((3651.77+410.99)*6.26+5529.23*3.91)*1000 -> 47052166.9 | J32: детализировать
A33: 4 | C33: Объекты транспортного хозяйства и связи
A34: 4.1 | C34: Патрульная дорога (по генплану №195) ,Участок №1 | D34: м2 | E34: =39588+15593+27040+11062 -> 93283 | F34: =G34/E34*1000 -> 1373.292994 | G34: =20464.04*6.26 -> 128104.8904 | H34: А-3777-СМ2.9и1 том 11.2.9и1/ ОС 05-01и2 (10361930)/ ЛСР № 05-01-01и1 (10359730) | I34: общая площадь и стоимость Уч1+Уч2 | J34: детализировано
C35: в том числе | J35: детализировано
C36: СМР: | F36: =G36/(E53+E59)*1000 -> 2211.791089 | G36: =SUM(G37:G103) -> 122048.8441 | I36: =SUM(I37:I103) -> 144017.636 | J36: детализировано
C37: Земляные работы. Работы с растительным грунтом [V=36404 м3] | D37: м3 | E37: 36404 | F37: =22.96*6.26 -> 143.7296 | G37: =835.99*6.26 -> 5233.2974 | H37: ОС 05-01и2 (10361930) | I37: =G37*1.18 -> 6175.290932 | J37: детализировано
C38: в том числе
C39: Разработка грунта с перемещением до 20 м бульдозерами (с перемещением во временное складирование) | D39: м3 | E39: =13531/27062*36404 -> 18202 | F39: =G39/E39*1000 -> 12.66203824 | G39: =(20000+16817)*6.26/1000 -> 230.47442 | H39: ЛСР № 05-01-01и1 (10359730)/ 10359740 ? Раздел 5 | I39: =G39*1.18 -> 271.9598156
C40: Разработка грунта с перемещением до 20 м бульдозерами. Выборка потенциально-растительного грунта (с перемещением во временное складирование) | D40: м3 | E40: =13531/27062*36404 -> 18202 | F40: =G40/E40*1000 -> 12.66203824 | G40: =(20000+16817)*6.26/1000 -> 230.47442 | H40: ЛСР № 05-01-01и1 (10359730)/ 10359740 ? Раздел 5 | I40: =G40*1.18 -> 271.9598156
C41: Устройство дорожных насыпей бульдозерами с перемещением грунта до 20 м (восстановление растительного грунта на откосах и грунтовых площадках слоем 0,15 м) | D41: м3 | E41: =6178/27062*36404 -> 8310.69071 | F41: =G41/E41*1000 -> 8.281947001 | G41: =(10995)*6.26/1000 -> 68.8287 | H41: ЛСР № 05-01-01и1 (10359730)/ 10359740 ? Раздел 5 | I41: 81.217866
C42: Укрепление откосов земляных сооружений посевом многолетних трав: механизированным способом с поливом посевов трав водой | D42: м2 | E42: =6178/0.15/27062*36404 -> 55404.60473 | F42: =G42/E42*1000 -> 60.57899621 | G42: =(371331+164828)*6.26/1000 -> 3356.35534 | H42: ЛСР № 05-01-01и1 (10359730)/ 10359740 ? Раздел 5 | I42: 3960.499301
C43: Разработка грунта с погрузкой на автомобили-самосвалы (погрузка лишнего грунта) с перевозка грузов автомобилями-самосвалами (вывоз лишнего растительного грунта) | D43: м3 | E43: =20884/27062*36404 -> 28093.30929 | F43: =G43/E43*1000 -> 47.9532157 | G43: =(119797+95405)*6.26/1000 -> 1347.16452 | H43: ЛСР № 05-01-01и1 (10359730)/ 10359740 ? Раздел 5 | I43: 1589.654134
C44: Земляные работы. Работы с минеральным грунтом [V=66180 м3] | D44: м3 | E44: 66180 | F44: =19.21*6.26 -> 120.2546 | G44: =1271.02*6.26 -> 7956.5852 | H44: ОС 05-01и2 (10361930) | I44: =G44*1.18 -> 9388.770536 | J44: детализировано
C45: в том числе
C51: Устройство водоотводных канав. Работы с растительным грунтом [V=5337 м3] | D51: м3 | E51: 5337 | F51: =31.23*6.26 -> 195.4998 | G51: =166.67*6.26 -> 1043.3542 | H51: ОС 05-01и2 (10361930) | I51: 1231.157956 | J51: детализировано
C52: Устройство водоотводных канав. Работы с минеральным грунтом [V=940 м3] | D52: м3 | E52: 940 | F52: =80.83*6.26 -> 505.9958 | G52: =75.98*6.26 -> 475.6348 | H52: ОС 05-01и2 (10361930) | I52: 561.249064 | J52: детализировано
C53: Искусственные покрытия. Новое дорожное покрытие А1 [S=39588 м2] | D53: м2 | E53: 39588 | F53: =170.51*6.26 -> 1067.3926 | G53: =6750.16*6.26 -> 42256.0016 | H53: ОС 05-01и2 (10361930) | I53: 49862.08189 | J53: детализировано
C54: в т.ч. Материалы | J54: детализировано
C55: Песок природный для строительных: работ средний | D55: м3 | E55: =49610*0.3*1.1 -> 16371.3 | F55: =149.48*6.26 -> 935.7448 | G55: =2447182*6.26/1000 -> 15319.35932 | I55: =G55*1.18 -> 18076.844 | J55: детализировано
C56: Щебень из природного камня для строительных работ марка 800, фракция 10-20 мм | D56: м3 | E56: =641.3+593.8 -> 1235.1 | F56: =184.06*6.26 -> 1152.2156 | G56: =(118037.68+109294.83)*6.26/1000 -> 1423.101513 | I56: =G56*1.18 -> 1679.259785 | J56: детализировано
C57: Щебень из природного камня для строительных работ марка 800, фракция 40-70 мм | D57: м3 | E57: =8081+2694+7482-4489 -> 13768 | F57: =156.68*6.26 -> 980.8168 | G57: =(1266131.08+422095.92+1172279.76-703336.52)*6.26/1000 -> 13503.8857 | I57: =G57*1.18 -> 15934.58513 | J57: детализировано
C58: Щебень из природного камня для строительных работ марка 800, фракция 5(3)-10 мм | D58: м3 | E58: 395.9 | F58: =185.5*6.26 -> 1161.23 | G58: =73439.45*6.26/1000 -> 459.730957 | I58: =G58*1.18 -> 542.4825293 | J58: детализировано
C59: Искусственные покрытия. Новое покрытие обочины Щ1 [S=15593 м2] | D59: м2 | E59: 15593 | F59: =124.9*6.26 -> 781.874 | G59: =1947.6*6.26 -> 12191.976 | H59: 05-01-01и1 (10359730) раздел 13 | I59: 14386.53168 | J59: детализировано
C60: в т.ч. Материалы | J60: детализировано
C61: Песок природный для строительных: работ средний | D61: м3 | E61: =15593*0.3*1.1 -> 5145.69 | F61: =149.48*6.26 -> 935.7448 | G61: =769178*6.26/1000 -> 4815.05428 | I61: =G61*1.18 -> 5681.76405 | J61: детализировано
C62: Щебень из природного камня для строительных работ марка 800, фракция 10-20 мм | D62: м3 | E62: 233.9 | F62: =184.06*6.26 -> 1152.2156 | G62: =43051.63*6.26/1000 -> 269.5032038 | I62: =G62*1.18 -> 318.0137805 | J62: детализировано
C63: Щебень из природного камня для строительных работ марка 800, фракция 40-70 мм | D63: м3 | E63: =2947+2161 -> 5108 | F63: =156.68*6.26 -> 980.8168 | G63: =(461735.96+338585.48)*6.26/1000 -> 5010.012214 | I63: =G63*1.18 -> 5911.814413 | J63: детализировано
C64: Щебень из природного камня для строительных работ марка 800, фракция 5(3)-10 мм | D64: м3 | E64: 155.9 | F64: =185.5*6.26 -> 1161.23 | G64: =28919.45*6.26/1000 -> 181.035757 | I64: =G64*1.18 -> 213.6221933 | J64: детализировано
C65: Устройство железобетонной водопропускной трубы диаметром 0,5м [L=11,2 м] | D65: м | E65: 11.2 | F65: =800*6.26 -> 5008 | G65: =8.96*6.26 -> 56.0896 | H65: 05-01-01и1 (10359730) раздел 24 | I65: 66.185728 | J65: детализировано
C66: в т.ч. Материалы | J66: детализировано
C67: Смесь песчано-гравийная природная | D67: м3 | E67: 2.89 | F67: =136.52*6.26 -> 854.6152 | G67: =394.54*6.26/1000 -> 2.4698204 | I67: =G67*1.18 -> 2.914388072 | J67: детализировано
C68: Устройство оголовков железобетонной водопропускной трубы диаметром 0,5м [2 шт] | D68: шт | E68: 2 | F68: =3250*6.26 -> 20345 | G68: =6.5*6.26 -> 40.69 | H68: 05-01-01и1 (10359730) раздел 25 | I68: 48.0142 | J68: детализировано
C69: в т.ч. Материалы | J69: детализировано
C70: Смесь песчано-гравийная природная | D70: м3 | E70: 15.48 | F70: =136.52*6.26 -> 854.6152 | G70: =2113.33*6.26/1000 -> 13.2294458 | I70: =G70*1.18 -> 15.61074604 | J70: детализировано
C71: Устройство железобетонной водопропускной трубы диаметром 0,75м [L=138 м] | D71: м | E71: 138 | F71: =1046.01*6.26 -> 6548.0226 | G71: =144.35*6.26 -> 903.631 | H71: 05-01-01и1 (10359730) раздел 15 | I71: 1066.28458 | J71: детализировано
C72: в т.ч. Материалы | J72: детализировано
C73: Смесь песчано-гравийная природная | D73: м3 | E73: 71.21 | F73: =136.52*6.26 -> 854.6152 | G73: =9721.59*6.26/1000 -> 60.8571534 | I73: =G73*1.18 -> 71.81144101 | J73: детализировано
C74: Устройство оголовков железобетонной водопропускной трубы диаметром 0,75м [24 шт] | D74: шт | E74: 24 | F74: =9010*6.26 -> 56402.6 | G74: =216.24*6.26 -> 1353.6624 | H74: 05-01-01и1 (10359730) раздел 16 | I74: 1597.321632 | J74: детализировано
C75: в т.ч. Материалы | J75: детализировано
C76: Смесь песчано-гравийная природная | D76: м3 | E76: 309.6 | F76: =136.52*6.26 -> 854.6152 | G76: =42266.59*6.26/1000 -> 264.5888534 | I76: =G76*1.18 -> 312.214847 | J76: детализировано
C77: Щебень из природного камня для строительных работ марка 800, фракция 10-20 мм | D77: м3 | E77: 47.64 | F77: =184.06*6.26 -> 1152.2156 | G77: =8768.62*6.26/1000 -> 54.8915612 | I77: =G77*1.18 -> 64.77204222 | J77: детализировано
C78: Песок природный для строительных работ повышенной крупности и крупный | D78: м3 | E78: 0.0018 | F78: =156.68*6.26 -> 980.8168 | G78: =0.28*6.26/1000 -> 0.0017528 | I78: =G78*1.18 -> 0.002068304 | J78: детализировано
C79: Устройство железобетонной водопропускной трубы диаметром 1,0м [L=23,52 м] | D79: м | E79: 23.52 | F79: =1758.08*6.26 -> 11005.5808 | G79: =41.35*6.26 -> 258.851 | H79: 05-01-01и1 (10359730) раздел 26 | I79: 305.44418 | J79: детализировано
C80: в т.ч. Материалы | J80: детализировано
C81: Смесь песчано-гравийная природная | D81: м3 | E81: 21.24 | F81: =136.52*6.26 -> 854.6152 | G81: =2899.68*6.26/1000 -> 18.1519968 | I81: =G81*1.18 -> 21.41935622 | J81: детализировано
C82: Устройство оголовков железобетонной водопропускной трубы диаметром 1,0м [4 шт] | D82: шт | E82: 4 | F82: =13870*6.26 -> 86826.2 | G82: =55.48*6.26 -> 347.3048 | H82: 05-01-01и1 (10359730) раздел 27 | I82: 409.819664 | J82: детализировано
C83: в т.ч. Материалы | J83: детализировано
C84: Смесь песчано-гравийная природная | D84: м3 | E84: 27.86 | F84: =136.52*6.26 -> 854.6152 | G84: =3803.45*6.26/1000 -> 23.809597 | I84: =G84*1.18 -> 28.09532446 | J84: детализировано
C85: Щебень из природного камня для строительных работ марка 800, фракция 20-40 мм | D85: м3 | E85: 2.224 | F85: =165.33*6.26 -> 1034.9658 | G85: =367.69*6.26/1000 -> 2.3017394 | I85: =G85*1.18 -> 2.716052492 | J85: детализировано
C86: Щебень из природного камня для строительных работ марка 800, фракция 10-20 мм | D86: м3 | E86: =8.367+0.5992 -> 8.9662 | F86: =184.06*6.26 -> 1152.2156 | G86: =(1540.03+110.29)*6.26/1000 -> 10.3310032 | I86: =G86*1.18 -> 12.19058378 | J86: детализировано
C87: Песок природный для строительных работ повышенной крупности и крупный | D87: м3 | E87: =0.0003+0 -> 0.0003 | F87: =156.68*6.26 -> 980.8168 | G87: =(0.05+0)*6.26/1000 -> 0.000313 | I87: =G87*1.18 -> 0.00036934 | J87: детализировано
C88: Устройство железобетонной водопропускной трубы диаметром 2,0м [L=32,00 м] | D88: м | E88: 32 | F88: =7180*6.26 -> 44946.8 | G88: =229.76*6.26 -> 1438.2976 | H88: 05-01-01и1 (10359730) раздел 28 | I88: 1697.191168 | J88: детализировано
C89: в т.ч. Материалы | J89: детализировано
C90: Щебень из природного камня для строительных работ марка 800, фракция 40-70 мм | D90: м3 | E90: 20.64 | F90: =156.68*6.26 -> 980.8168 | G90: =3233.88*6.26/1000 -> 20.2440888 | I90: =G90*1.18 -> 23.88802478 | J90: детализировано
C91: Устройство оголовков железобетонной водопропускной трубы диаметром 2,0м [8 шт] | D91: шт | E91: 8 | F91: =24683.75*6.26 -> 154520.275 | G91: =197.47*6.26 -> 1236.1622 | H91: 05-01-01и1 (10359730) раздел 29 | I91: 1458.671396 | J91: детализировано
C92: в т.ч. Материалы | J92: детализировано
C93: Щебень из природного камня для строительных работ марка 800, фракция 40-70 мм | D93: м3 | E93: 8.772 | F93: =156.68*6.26 -> 980.8168 | G93: =1374.4*6.26/1000 -> 8.603744 | I93: =G93*1.18 -> 10.15241792 | J93: детализировано
C94: Смесь песчано-гравийная природная | D94: м3 | E94: 84.11 | F94: =136.52*6.26 -> 854.6152 | G94: =11482.7*6.26/1000 -> 71.881702 | I94: =G94*1.18 -> 84.82040836 | J94: детализировано
C95: Устьевое сооружение [S=107 м2] | D95: м2 | E95: 107 | F95: =307.76*6.26 -> 1926.5776 | G95: =32.93*6.26 -> 206.1418 | H95: 05-01-01и1 (10359730) раздел 30 | I95: 243.247324 | J95: детализировано
C96: в т.ч. Материалы | J96: детализировано
C97: Щебень черный горячий, фракция 15-20 мм | D97: м3 | E97: =1.375+1.506 -> 2.881 | F97: =411.29*6.26 -> 2574.6754 | G97: =(565.52+619.4)*6.26/1000 -> 7.4175992 | I97: =G97*1.18 -> 8.752767056 | J97: детализировано
C98: Щебень черный горячий, фракция 20-25 мм | D98: м3 | E98: =14.63+16.02 -> 30.65 | F98: =396.67*6.26 -> 2483.1542 | G98: =(5803.28+6354.65)*6.26/1000 -> 76.1086418 | I98: =G98*1.18 -> 89.80819732 | J98: детализировано
C99: Песок природный для строительных работ повышенной крупности и крупный | D99: м3 | E99: =0.0001+0.0003 -> 0.0004 | F99: =156.68*6.26 -> 980.8168 | G99: =(0.02+0.05)*6.26/1000 -> 0.0004382 | I99: =G99*1.18 -> 0.000517076 | J99: детализировано
C100: Установка дорожных знаков [11 шт] | D100: шт | E100: 11 | F100: =1241.82*6.26 -> 7773.7932 | G100: =13.66*6.26 -> 85.5116 | H100: 05-01-01и1 (10359730) разделы 18,19,20 | I100: 100.903688 | J100: детализировано
C101: в т.ч. Материалы | J101: детализировано
C102: Песок природный для строительных работ средний | D102: м3 | E102: =1.196+2.393+0.7975 -> 4.3865 | F102: =149.48*6.26 -> 935.7448 | G102: =(178.78+357.71+119.21)*6.26/1000 -> 4.104682 | I102: =G102*1.18 -> 4.84352476 | J102: детализировано
C103: Установка сигнальных столбиков [150 шт] | D103: шт | E103: 150 | F103: =118.93*6.26 -> 744.5018 | G103: =17.84*6.26 -> 111.6784 | H103: 05-01-01и1 (10359730) раздел 17 | I103: 131.780512 | J103: детализировано
C104: Патрульная дорога (по генплану №195) ,Участок №1 по РД | D104: м2 | I104: =G104*1.18 -> 0 | J104: детализировано
C105: Объем по РД минус объем по ПД | D105: м2 | E105: =E104-(E53+E59) -> -55181 | I105: =G105*1.18 -> 0 | J105: детализировано
C106: Объемы по РД в счет резерва средств на непредвиденные работы и затраты | D106: м2 | G106: =SUM(G107:G109) -> 0 | I106: 0 | J106: детализировано
I107: 0 | J107: детализировано
I108: 0 | J108: детализировано
I109: 0 | J109: детализировано
A110: 4.2 | C110: Патрульная дорога (по генплану №195) ,Участок №2 | D110: м2 | E110: =27040+11062 -> 38102 | H110: А-3777-СМ2.9и1 том 11.2.9и1 / ОС 05-01и2 (10361930)/ ЛСР № 05-01-01и1 (10359730) | I110: стоимость учтена в Уч1 | J110: детализировано
C111: в том числе
C112: СМР: | F112: =G112/(E117+E123)*1000 -> 2137.861122 | G112: =SUM(G113:G149) -> 81456.78447 | I112: =SUM(I113:I174) -> 145714.557
C113: Земляные работы. Работы с растительным грунтом [V=27062 м3] | D113: м3 | E113: 27062 | F113: =22.96*6.26 -> 143.7296 | G113: =621.46*6.26 -> 3890.3396 | I113: =G113*1.18 -> 4590.600728
C114: Земляные работы. Работы с минеральным грунтом [V=60500 м3] | D114: м3 | E114: 60500 | F114: =19.21*6.26 -> 120.2546 | G114: =1161.93*6.26 -> 7273.6818 | I114: =G114*1.18 -> 8582.944524
C115: Устройство водоотводных канав. Работы с растительным грунтом [V=4195 м3] | D115: м3 | E115: 4195 | F115: =31.23*6.26 -> 195.4998 | G115: =131.01*6.26 -> 820.1226 | I115: 967.744668
C116: Устройство водоотводных канав. Работы с минеральным грунтом [V=735 м3] | D116: м3 | E116: 735 | F116: =318.91*6.26 -> 1996.3766 | G116: =234.4*6.26 -> 1467.344 | I116: 1731.46592
C117: Искусственные покрытия. Новое дорожное покрытие А1 [S=27040 м2] | D117: м2 | E117: 27040 | F117: =170.51*6.26 -> 1067.3926 | G117: =4610.6*6.26 -> 28862.356 | I117: 34057.58008
C118: в т.ч. Материалы
C119: Песок природный для строительных: работ средний | D119: м3 | E119: =49610*0.3*1.1/39588*27040 -> 11182.1752 | F119: =149.48*6.26 -> 935.7448 | G119: =1671512*6.26/1000 -> 10463.66512 | I119: =G119*1.18 -> 12347.12484
C120: Щебень из природного камня для строительных работ марка 800, фракция 10-20 мм | D120: м3 | E120: =438+405.6 -> 843.6 | F120: =184.06*6.26 -> 1152.2156 | G120: =(80618.28+74654.74)*6.26/1000 -> 972.0091052 | I120: =G120*1.18 -> 1146.970744
C121: Щебень из природного камня для строительных работ марка 800, фракция 40-70 мм | D121: м3 | E121: =5519+1840+5111-3066 -> 9404 | F121: =156.68*6.26 -> 980.8168 | G121: =(864716.92+288291.2+800791.48-480380.88)*6.26/1000 -> 9223.601187 | I121: =G121*1.18 -> 10883.8494
C122: Щебень из природного камня для строительных работ марка 800, фракция 5(3)-10 мм | D122: м3 | E122: 270.4 | F122: =185.5*6.26 -> 1161.23 | G122: =50159.2*6.26/1000 -> 313.996592 | I122: =G122*1.18 -> 370.5159786
C123: Искусственные покрытия. Новое покрытие обочины Щ1 [S=11062 м2] | D123: м2 | E123: 11062 | F123: =124.9*6.26 -> 781.874 | G123: =1381.67*6.26 -> 8649.2542 | I123: 10206.11996
C124: в т.ч. Материалы
C125: Песок природный для строительных: работ средний | D125: м3 | E125: =15593*0.3*1.1/15593*11062 -> 3650.46 | F125: =149.48*6.26 -> 935.7448 | G125: =545671*6.26/1000 -> 3415.90046 | I125: =G125*1.18 -> 4030.762543
C126: Щебень из природного камня для строительных работ марка 800, фракция 10-20 мм | D126: м3 | E126: 165.9 | F126: =184.06*6.26 -> 1152.2156 | G126: =30535.55*6.26/1000 -> 191.152543 | I126: =G126*1.18 -> 225.5600007
C127: Щебень из природного камня для строительных работ марка 800, фракция 40-70 мм | D127: м3 | E127: =2091+1533 -> 3624 | F127: =156.68*6.26 -> 980.8168 | G127: =(327617.88+240190.44)*6.26/1000 -> 3554.480083 | I127: =G127*1.18 -> 4194.286498
C128: Щебень из природного камня для строительных работ марка 800, фракция 5(3)-10 мм | D128: м3 | E128: 110.6 | F128: =185.5*6.26 -> 1161.23 | G128: =20516.3*6.26/1000 -> 128.432038 | I128: =G128*1.18 -> 151.5498048
C129: Устройство железобетонной водопропускной трубы диаметром 0,75м [L=89,6 м] | D129: м | E129: 89.6 | F129: =1045.98*6.26 -> 6547.8348 | G129: =93.72*6.26 -> 586.6872 | I129: 692.290896
C130: в т.ч. Материалы
C131: Смесь песчано-гравийная природная | D131: м3 | E131: 46.23 | F131: =136.52*6.26 -> 854.6152 | G131: =6311.32*6.26/1000 -> 39.5088632 | I131: =G131*1.18 -> 46.62045858
C132: Устройство оголовков железобетонной водопропускной трубы диаметром 0,75м [16 шт] | D132: шт | E132: 16 | F132: =9010*6.26 -> 56402.6 | G132: =144.16*6.26 -> 902.4416 | I132: 1064.881088
C133: в т.ч. Материалы
C134: Смесь песчано-гравийная природная | D134: м3 | E134: 206.4 | F134: =136.52*6.26 -> 854.6152 | G134: =28177.73*6.26/1000 -> 176.3925898 | I134: =G134*1.18 -> 208.143256
C135: Щебень из природного камня для строительных работ марка 800, фракция 10-20 мм | D135: м3 | E135: 31.76 | F135: =184.06*6.26 -> 1152.2156 | G135: =5845.75*6.26/1000 -> 36.594395 | I135: =G135*1.18 -> 43.1813861
C136: Песок природный для строительных работ повышенной крупности и крупный | D136: м3 | E136: 0.0012 | F136: =156.68*6.26 -> 980.8168 | G136: =0.19*6.26/1000 -> 0.0011894 | I136: =G136*1.18 -> 0.001403492
C137: Устройство железобетонной водопропускной трубы диаметром 1,0м [L=11,76 м] | D137: м | E137: 11.76 | F137: =1757.65*6.26 -> 11002.889 | G137: =20.67*6.26 -> 129.3942 | I137: 152.685156
C138: в т.ч. Материалы
C139: Смесь песчано-гравийная природная | D139: м3 | E139: 10.62 | F139: =136.52*6.26 -> 854.6152 | G139: =1449.84*6.26/1000 -> 9.0759984 | I139: =G139*1.18 -> 10.70967811
C140: Устройство оголовков железобетонной водопропускной трубы диаметром 1,0м [2 шт] | D140: шт | E140: 2 | F140: =13870*6.26 -> 86826.2 | G140: =27.74*6.26 -> 173.6524 | I140: 204.909832
C141: в т.ч. Материалы
C142: Смесь песчано-гравийная природная | D142: м3 | E142: 13.93 | F142: =136.52*6.26 -> 854.6152 | G142: =1901.72*6.26/1000 -> 11.9047672 | I142: =G142*1.18 -> 14.0476253
C143: Щебень из природного камня для строительных работ марка 800, фракция 20-40 мм | D143: м3 | E143: 1.112 | F143: =165.33*6.26 -> 1034.9658 | G143: =183.85*6.26/1000 -> 1.150901 | I143: =G143*1.18 -> 1.35806318
C144: Щебень из природного камня для строительных работ марка 800, фракция 10-20 мм | D144: м3 | E144: =4.184+0.2996 -> 4.4836 | F144: =184.06*6.26 -> 1152.2156 | G144: =(770.11+55.14)*6.26/1000 -> 5.166065 | I144: =G144*1.18 -> 6.0959567
C145: Песок природный для строительных работ повышенной крупности и крупный | D145: м3 | E145: =0.0002+0 -> 0.0002 | F145: =156.68*6.26 -> 980.8168 | G145: =(0.03+0)*6.26/1000 -> 0.0001878 | I145: =G145*1.18 -> 0.000221604
C146: Установка дорожных знаков [10 шт] | D146: шт | E146: 10 | F146: =1259*6.26 -> 7881.34 | G146: =12.59*6.26 -> 78.8134 | I146: 92.999812
C147: в т.ч. Материалы
C148: Песок природный для строительных работ средний | D148: м3 | E148: =0.3988+2.393+1.196 -> 3.9878 | F148: =149.48*6.26 -> 935.7448 | G148: =(59.61+357.71+178.78)*6.26/1000 -> 3.731586 | I148: =G148*1.18 -> 4.40327148
C149: Установка сигнальных столбиков [102 шт] | D149: шт | E149: 102 | F149: =118.92*6.26 -> 744.4392 | G149: =12.13*6.26 -> 75.9338 | I149: 89.601884
C150: Патрульная дорога (по генплану №195) ,Участок №1 по РД | D150: м2 | I150: =G150*1.18 -> 0
C151: Объем по РД минус объем по ПД | D151: м2 | E151: =E150-(E117+E123) -> -38102 | I151: =G151*1.18 -> 0
C152: Объемы по РД в счет резерва средств на непредвиденные работы и затраты | D152: м2 | G152: =SUM(G153:G155) -> 0 | I152: 0 | J152: перенести в НЗ?
I153: 0
I154: 0
I155: 0
A156: 4.3 | C156: Путепровод через автомобильную дорогу Р-25 Симферополь-Евпатория | D156: Комплект | E156: 1 | G156: =3357.04*6.26*1000 -> 21015070.4 | H156: А-3777-СМ2.8и2 том 11.2.8и2/ ОСР 05-03и2/ ЛСР 05-03 и2 | J156: детализировать по объему, а не комплекту
C157: в том числе | J157: детализировать по объему, а не комплекту
C158: СМР: | F158: =SUM(F159:F166) -> 21015064.14 | G158: =3357039*6.26/1000 -> 21015.06414 | I158: =SUM(I159:I203) -> 24797.77569 | J158: детализировать по объему, а не комплекту
C159: Крайние опоры №1 [1 шт], №4 [1 шт]-А3777-КР4-ТР л.6, 9 | E159: 1 | F159: =267597*6.26 -> 1675157.22 | G159: =F159/1000 -> 1675.15722 | I159: =G159*1.18 -> 1976.68552 | J159: детализировать по объему, а не комплекту
C160: Промежуточные опоры №2 [1 шт], №3 [1 шт]-А3777-КР4-ТР л.7, 8 | E160: 1 | F160: =847467*6.26 -> 5305143.42 | G160: =F160/1000 -> 5305.14342 | I160: =G160*1.18 -> 6260.069236 | J160: детализировать по объему, а не комплекту
C161: Пролетное строение | E161: 1 | F161: =1369134*6.26-18.78 -> 8570760.06 | G161: 8570.76006 | I161: 10113.49687 | J161: детализировать по объему, а не комплекту
C162: Укрепление и водоотвод с откосов насыпей-А3777-КР4-ТР л.16 | E162: 1 | F162: =120901*6.26 -> 756840.26 | G162: 756.84026 | I162: =G162*1.18 -> 893.0715068 | J162: детализировать по объему, а не комплекту
C163: Мостовое полотно-А3777-КР4-ТР л.12 | E163: 1 | F163: =614768*6.26 -> 3848447.68 | G163: 3848.44768 | I163: 4541.168262 | J163: детализировать по объему, а не комплекту
C164: Сопряжение путепровода с насыпями-А3777-КР4-ТР л.12 | E164: 1 | F164: =102889*6.26 -> 644085.14 | G164: 644.08514 | I164: 760.0204652 | J164: детализировать по объему, а не комплекту
C165: Крепление котлована стальными трубами диам.219х10 мм [30 шт, L=9 м]-А3777-ПОС2-ТР л.5 | E165: 1 | F165: =29132*6.26 -> 182366.32 | G165: 182.36632 | I165: 215.1922576 | J165: детализировать по объему, а не комплекту
C166: Дорожная разметка-А3777-ПОС2-ТР л.15 | E166: 1 | F166: =5154*6.26 -> 32264.04 | G166: 32.26404 | I166: 38.0715672 | J166: детализировать по объему, а не комплекту
C167: Путепровод через автомобильную дорогу Р-25 Симферополь-Евпатория | I167: =G167*1.18 -> 0
C168: Объем по РД минус объем по ПД | I168: =G168*1.18 -> 0
C169: Объемы по РД в счет резерва средств на непредвиденные работы и затраты | G169: =SUM(G170:G172) -> 0 | I169: 0 | J169: перенести в НЗ?
I170: 0
I171: 0
I172: 0
A173: 5 | C173: Временные здания и сооружения
A174: 5.1 | C174: Затраты на временные здания и сооружения-3,1% с К=0,8 (3,1*0,8=2,48) | D174: Комплект | E174: 1 | G174: =(59534.77+13472.75-3357.04)*3.1%*0.8*6.26*1000 -> 10813097.72
A178: 5.2 | C178: Затраты на временные здания и сооружения путепровод- 6% с К=0,8 (6*0,8=4,8) | D178: Комплект | E178: 1 | G178: =3357.04*6%*0.8*6.26*1000 -> 1008723.379
A182: 6 | C182: Прочие работы и затраты
A183: 6.1 | C183: Пусконаладочные работы. Реконструкция периметрового ограждения с техническими средствами охраны и видеонаблюдения | D183: Комплект | E183: 1 | G183: =342.56*12.83*1000 -> 4395044.8
A184: 6.2 | C184: Затраты на размещение ТКО на ПОЛИГОН. | D184: м3 | E184: 2450 | F184: 53.41 | G184: =11.86*11.04*1000 -> 130934.4
A185: 6.3 | C185: Затраты на утилизацию, обезвреживание и захоронение твердых бытовых отходов | D185: Комплект | E185: 1 | G185: =5.42*11.04*1000 -> 59836.8
A186: 6.4 | C186: Затраты по охране окружающей среды | G186: =0.08*11.04*1000 -> 883.2
A187: 7 | C187: Резерв на непредвиденные работы и затраты
A188: 7.1 | C188: Резерв на непредвиденные работы и затраты-3% | D188: Комплект | E188: 1 | G188: =((1832.67+414.21)*6.26+1453.81*3.91+(4615.39*3.92*1.19+37.45*3.91*1.266+342.56*12.83+(11.86+0.08+5.42)*11.04)*0.03)*1000 -> 20538924.41
A189: 8 | C189: Итого | G189: =SUM(G13:G188) -> 577643295.4
A190: 9 | C190: Затраты, связанные с уплатой налога на добавленную стоимость- 18% | G190: =G189*0.18 -> 103975793.2
A191: 10 | C191: Всего с НДС | G191: =G189*1.18 -> 681619088.6
